bitfinex-derivatives/quotes_ETHF0:USTF0_20250417
["timestamp","ask_amount","ask_price","bid_price","bid_amount"]
[1744860509342,1.26336,1583.2,1583.0,1.744]
[1744860509531,2.98764,1583.1,1583.0,0.876]
[1744860509846,6.19544,1583.1,1582.9,1.7247]
[1744860510035,1.7242,1583.1,1582.9,1.7247]
[1744860510441,1.26356,1583.0,1582.7,2.13934]
[1744860510642,1.6763,1582.9,1582.8,1.26368]
[1744860510848,1.6763,1582.9,1582.7,3.72881]
[1744860511142,1.6763,1582.9,1582.7,2.4651]
[1744860511335,2.93994,1582.9,1582.7,1.5895]
[1744860511648,1.26368,1582.8,1582.5,1.26388]
[1744860511844,2.94009,1582.7,1582.5,1.5895]
[1744860512035,3.2078,1582.6,1582.4,0.8184515]
[1744860512344,1.6763,1582.5,1582.4,2.0824415]
[1744860512645,1.6763,1582.5,1582.4,0.0094515]
[1744860513140,7.94022,1582.5,1582.4,0.0094515]
[1744860513336,1.26408,1582.3,1582.2,8.38543157]
[1744860513536,9.07488,1582.3,1582.2,8.38543157]
[1744860514338,14.07488,1582.3,1582.2,8.38543157]
[1744860515044,15.83968,1582.3,1582.2,8.38543157]
[1744860515544,10.83968,1582.3,1582.2,8.38543157]
[1744860516146,0.0094515,1582.4,1582.2,8.38543157]
[1744860516444,1.7742515,1582.4,1582.3,1.26408]
[1744860516643,1.7742515,1582.4,1582.3,2.85698]
[1744860517040,0.0094515,1582.4,1582.3,2.85698]
[1744860517545,0.0094515,1582.4,1582.3,7.85698]
[1744860519146,0.0094515,1582.4,1582.3,2.85698]
[1744860520943,0.0094515,1582.4,1582.3,1.5929]
[1744860521342,1.6606515,1582.4,1582.3,1.5929]
[1744860521542,1.6606515,1582.4,1582.1,2.0795415]
[1744860521543,1.26416,1582.2,1582.1,0.0094515]
[1744860521749,4.47196,1582.2,1582.1,0.0094515]
[1744860521946,9.47196,1582.2,1582.1,0.0094515]
[1744860522148,1.26437,1582.0,1581.7,10.07123157]
[1744860522348,1.6512,1581.9,1581.7,11.33577157]
[1744860522550,4.859,1581.9,1581.7,11.33577157]
[1744860522750,1.6512,1581.9,1581.7,10.07123157]
[1744860522941,1.6512,1581.9,1581.7,11.33573157]
[1744860523146,1.6512,1581.9,1581.8,1.26448]
[1744860523942,1.26456,1581.7,1581.6,8.08442916]
[1744860524251,9.09836,1581.7,1581.6,1.00733366]
[1744860524442,9.09836,1581.7,1581.5,16.73929629]
[1744860524443,1.26464,1581.6,1581.5,16.73929629]
[1744860524646,1.26512,1581.0,1580.9,8.39433377]
[1744860524851,9.09892,1581.0,1580.9,8.39433377]
[1744860525049,7.8338,1581.0,1580.9,8.39433377]
[1744860525254,6.234,1581.0,1580.9,8.39433377]
[1744860525545,10.70692,1581.0,1580.9,8.39433377]
[1744860525746,15.70692,1581.0,1580.9,8.39433377]
[1744860526248,15.4408,1581.0,1580.4,25.03940216]
[1744860526453,3.2078,1580.8,1580.4,26.74720216]
[1744860526650,9.6908,1581.0,1580.7,1.26535]
[1744860526850,3.2078,1581.0,1580.5,4.875]
[1744860527052,0.00948196,1581.1,1580.9,1.2652]
[1744860527252,0.00948196,1581.1,1581.0,2.97292]
[1744860529056,0.00948196,1581.1,1581.0,7.84792]
[1744860529251,3.2078,1581.4,1581.3,1.26488]
[1744860529646,7.35066235,1581.4,1581.3,1.26488]
[1744860529851,4.14286235,1581.4,1581.3,1.26488]
[1744860530255,4.14286235,1581.4,1581.3,6.14088]
[1744860530649,4.14286235,1581.4,1581.2,2.86221]
[1744860530853,4.14286235,1581.4,1581.3,1.26488]
[1744860531158,4.14286235,1581.4,1581.2,1.5973]
[1744860531549,5.75376235,1581.4,1581.2,1.5973]
[1744860531861,5.75376235,1581.4,1581.2,2.86225]
[1744860532157,5.75376235,1581.4,1581.2,1.5973]
[1744860532360,3.2078,1581.3,1581.2,1.5973]
[1744860534158,3.2078,1581.3,1580.9,4.09278196]
[1744860534359,4.8048,1581.3,1581.0,3.02292]
[1744860534660,4.8048,1581.3,1581.1,1.26503]
[1744860534860,4.8048,1581.3,1581.2,1.7578]
[1744860535359,3.2078,1581.3,1581.2,3.02276]
[1744860536053,42.46948196,1581.5,1581.3,1.26484]
[1744860536358,0.00948196,1581.5,1581.4,1.6464]
[1744860536959,0.00948196,1581.5,1581.4,2.9112]
[1744860538651,1.27420196,1581.5,1581.4,1.6464]
[1744860538855,0.00948196,1581.5,1581.4,1.6464]
[1744860539051,0.00948196,1581.5,1581.4,2.9112]
[1744860539958,1.27420196,1581.5,1581.4,1.6464]
[1744860540159,0.00948196,1581.5,1581.4,1.6464]
[1744860540457,1.26507,1581.1,1580.9,2.15013196]
[1744860540754,4.47292,1581.0,1580.9,0.00948196]
[1744860541058,3.2078,1581.0,1580.9,1.27468196]
[1744860541259,4.47292,1581.0,1580.9,0.00948196]
[1744860541558,3.2078,1581.0,1580.9,1.27468196]
[1744860541759,3.2078,1581.0,1580.9,2.88448196]
[1744860542159,3.2078,1581.0,1580.9,1.61928196]
[1744860542461,4.47292,1581.0,1580.9,1.61928196]
[1744860543657,4.47279,1581.2,1580.9,1.61928196]
[1744860543851,4.47279,1581.2,1581.0,1.26506]
[1744860544052,4.47279,1581.2,1581.1,1.6005]
[1744860546357,4.47264,1581.4,1581.2,1.26492]
[1744860546549,4.47264,1581.4,1581.3,1.6005]
[1744860546749,6.23474,1581.4,1581.3,1.6005]
[1744860548058,1.26504,1581.1,1580.9,1.27464196]
[1744860548359,6.14312,1581.0,1580.9,1e-08]
[1744860548560,9.31682,1581.0,1580.9,1e-08]
[1744860548759,14.31682,1581.0,1580.9,1e-08]
[1744860550966,3.2078,1581.1,1581.0,1.26512]
[1744860551154,3.2078,1581.1,1581.0,2.87382]
[1744860551853,1.26512,1581.0,1580.9,1e-08]
[1744860552053,2.98022,1581.0,1580.9,1e-08]
[1744860553048,2.98022,1581.0,1580.0,3.2078]
[1744860553049,3.16337,1580.8,1580.0,3.2078]
[1744860553254,1.2657,1580.3,1580.1,1.26579]
[1744860553450,8.0858,1580.4,1580.0,1.627]
[1744860553659,44.0078,1580.4,1580.3,1.26568]
[1744860554159,3.2078,1580.4,1580.3,1.26568]
[1744860554460,1.27501196,1580.5,1580.3,1.26563]
[1744860554755,0.00948196,1580.5,1580.4,2.8926]
[1744860555459,3.2078,1580.9,1580.8,1.26528]
[1744860555858,3.2078,1580.9,1580.5,3.2715]
[1744860556065,3.2078,1580.9,1580.7,1.26529]
[1744860556362,3.2078,1580.9,1580.8,2.96188]
[1744860556863,0.00948196,1581.0,1580.9,1.2652]
[1744860557063,0.00948196,1581.0,1580.9,4.7034]
[1744860557565,3.21728196,1581.0,1580.9,3.4382]
[1744860558063,3.21728196,1581.0,1580.9,4.7034]
[1744860558252,0.00948196,1581.0,1580.9,9.7034]
[1744860558453,0.00948196,1581.0,1580.9,4.7034]
[1744860560261,10.40348468,1581.4,1581.3,1.26488]
[1744860560457,13.61128468,1581.4,1580.9,9.8734]
[1744860560654,11.66832468,1581.4,1581.1,1.26501]
[1744860560855,10.40348468,1581.4,1581.2,1.26495]
[1744860561056,10.40348468,1581.4,1581.3,1.26488]
[1744860561763,10.40348468,1581.4,1581.3,2.14038]
[1744860562463,10.40348468,1581.4,1581.3,0.8755]
[1744860562959,1.27424196,1581.5,1581.3,0.8755]
[1744860563155,1.26488,1581.3,1581.2,0.00948196]
[1744860563552,2.93198,1581.3,1581.2,0.00948196]
[1744860564464,1.6671,1581.3,1581.2,0.00948196]
[1744860564862,1.6671,1581.3,1581.2,1.62898196]
[1744860565764,2.93198,1581.3,1581.2,1.62898196]
[1744860566458,3.2078,1581.4,1581.2,2.89393196]
[1744860566667,3.2078,1581.4,1581.2,1.62898196]
[1744860566854,3.2078,1581.4,1581.3,1.6057]
[1744860567060,4.4726,1581.4,1581.3,1.6057]
[1744860567557,3.2078,1581.4,1581.3,2.87058]
[1744860567966,3.2078,1581.4,1581.3,1.6057]
[1744860567967,4.4726,1581.4,1581.3,1.6057]
[1744860569460,3.2078,1581.4,1581.3,2.87058]
[1744860570561,3.2078,1581.4,1581.2,0.00948196]
[1744860570562,1.26488,1581.3,1581.2,0.00948196]
[1744860570761,2.88118,1581.3,1581.2,0.00948196]
[1744860571066,8.61551235,1581.4,1581.2,1.27444196]
[1744860571262,8.61551235,1581.4,1581.3,1.6876]
[1744860571468,10.23051235,1581.4,1581.3,1.6876]
[1744860572369,1.26567,1580.4,1580.1,1.26578]
[1744860572559,1.26576,1580.2,1580.1,0.8197]
[1744860572969,1.26584,1580.1,1580.0,16.70663545]
[1744860573863,1.26584,1580.1,1580.0,18.46113545]
[1744860574372,1.26584,1580.1,1580.0,1.7545]
[1744860574873,6.09809196,1580.2,1580.0,1.7545]
[1744860575177,1.26592,1580.0,1579.9,0.00948196]
[1744860575470,4.47372,1580.0,1579.9,0.00948196]
[1744860576271,14.39772,1580.0,1579.9,1e-08]
[1744860577573,9.39772,1580.0,1579.9,1e-08]
[1744860578568,14.39772,1580.0,1579.9,1e-08]
[1744860578967,1.26645,1579.4,1579.1,1.26661]
[1744860579166,1.26651,1579.3,1579.0,3.00396]
[1744860579362,8.1328,1579.4,1579.0,1.7373]
[1744860579566,4.925,1579.4,1579.3,1.26648]
[1744860579766,3.2078,1579.6,1579.4,1.26637]
[1744860579977,3.2078,1579.6,1579.0,3.2078]
[1744860580172,4.47425,1579.4,1579.1,3.0039]
[1744860580472,3.2078,1579.4,1579.2,1.7373]
[1744860580785,9.4002,1579.4,1579.2,3.00383]
[1744860580974,8.1338,1579.4,1579.3,1.26648]
[1744860581173,3.2078,1579.4,1579.3,1.26648]
[1744860581375,3.2078,1579.4,1579.2,1.7373]
[1744860581684,3.2078,1579.4,1579.2,3.00384]
[1744860581978,4.4742,1579.4,1579.2,3.00384]
[1744860582184,8.09221,1579.3,1578.7,16.70663545]
[1744860582383,3.2078,1578.9,1578.7,18.31857517]
[1744860582686,3.2078,1579.1,1578.7,19.58550517]
[1744860582983,7.89588,1579.0,1578.7,19.58550517]
[1744860583577,4.926,1579.0,1578.7,18.31857517]
[1744860583782,4.928,1579.4,1579.2,1.26656]
[1744860583974,4.928,1579.4,1579.3,1.6219]
[1744860583975,6.18514972,1579.4,1579.3,1.6219]
[1744860584287,3.2078,1579.4,1579.3,2.88832]
[1744860584474,3.2078,1579.4,1579.3,1.6219]
[1744860584782,3.2078,1579.6,1579.4,1.26633]
[1744860584983,3.2078,1579.6,1579.5,1.6219]
[1744860585183,3.2078,1579.6,1579.1,1.2666]
[1744860585184,1.26646,1579.4,1579.1,1.2666]
[1744860585385,3.2078,1579.2,1579.1,1.6219]
[1744860585572,4.47436,1579.2,1579.1,1.6219]
[1744860585977,3.2078,1579.2,1579.1,2.88854]
[1744860586182,3.2078,1579.2,1579.1,1.6219]
[1744860586785,3.2078,1579.2,1579.1,2.88854]
[1744860587184,3.2078,1579.2,1579.1,1.6219]
[1744860587982,3.2078,1579.2,1579.1,2.88854]
[1744860588181,6.19451,1579.3,1579.1,2.88854]
[1744860588380,1.26651,1579.3,1579.2,1.6614]
[1744860588780,8.2378,1579.4,1579.2,1.6614]
[1744860588986,3.2078,1579.4,1579.2,1.6614]
[1744860589279,3.2078,1579.4,1578.8,3.2078]
[1744860589280,5.031,1579.3,1578.8,3.2078]
[1744860589480,1.26701,1578.7,1578.4,1.2672]
[1744860589676,1.27649196,1578.7,1578.5,1.65213972]
[1744860589878,0.00948196,1578.7,1578.5,1.65213972]
[1744860590186,0.00948196,1578.7,1578.6,2.12084]
[1744860590784,0.00948196,1578.7,1578.6,0.8538]
[1744860590785,1.27644196,1578.7,1578.6,0.8538]
[1744860591287,0.00948196,1578.7,1578.6,0.8538]
[1744860591473,0.00948196,1578.7,1578.6,2.12084]
[1744860591679,0.00948196,1578.7,1578.6,7.94764]
[1744860592079,3.2078,1579.0,1578.6,9.84814]
[1744860592278,8.2388,1579.4,1578.7,6.37521]
[1744860592488,3.19853972,1579.4,1579.2,1.26653]
[1744860592687,3.19853972,1579.4,1579.3,1.26648]
[1744860593577,3.19853972,1579.4,1579.3,3.01568]
[1744860594180,0.00948196,1579.5,1579.4,1.2664]
[1744860594485,4.17688551,1579.8,1579.6,1.2662]
[1744860594681,4.17688551,1579.8,1579.7,1.7492]
[1744860595275,5.44296551,1579.8,1579.7,1.7492]
[1744860595475,4.17688551,1579.8,1579.7,1.7492]
[1744860595680,1.26631,1579.6,1579.2,1.27602196]
[1744860595883,3.2078,1579.5,1579.3,1.7175]
[1744860596279,3.2078,1579.5,1579.3,2.98398]
[1744860596481,3.2078,1579.5,1579.4,1.7175]
[1744860597289,3.2078,1579.5,1579.4,2.9839]
[1744860597483,3.2078,1579.5,1579.4,1.7175]
[1744860597685,5.031,1579.6,1579.5,1.26632]
[1744860597885,3.2078,1579.7,1579.6,1.26624]
[1744860598186,3.2078,1579.7,1579.5,1.26626]
[1744860598386,3.2078,1579.7,1579.6,1.7175]
[1744860598889,3.2078,1579.7,1579.6,2.98374]
[1744860600191,3.2078,1579.7,1579.6,1.7175]
[1744860600490,3.2078,1579.7,1579.6,2.98374]
[1744860601691,3.2078,1579.7,1579.6,1.7175]
[1744860601990,8.24828196,1579.9,1579.8,1.26608]
[1744860602191,3.21728196,1579.9,1579.8,1.26608]
[1744860602585,3.21728196,1579.9,1579.8,2.86138]
[1744860603194,4.48328196,1579.9,1579.8,1.5953]
[1744860605197,3.21728196,1579.9,1579.8,2.86138]
[1744860606498,3.21728196,1579.9,1579.8,3.71218]
[1744860606895,4.48328196,1579.9,1579.8,1.5953]
[1744860608601,9.51328196,1579.9,1579.8,1.5953]
[1744860608905,1.26611,1579.8,1579.6,1.26619]
[1744860609109,6.13491,1579.8,1579.7,1.6594]
[1744860609291,4.8688,1579.8,1579.7,1.6594]
[1744860609608,0.00948196,1579.9,1579.8,1.26608]
[1744860609806,3.21728196,1579.9,1579.8,2.10938]
[1744860612402,3.21728196,1579.9,1579.8,2.93668]
[1744860615214,14.20728196,1579.9,1579.0,3.2078]
[1744860615407,3.2078,1579.4,1579.3,2.91348]
[1744860615607,3.2078,1579.4,1579.3,1.647]
[1744860615810,6.1977,1579.4,1579.3,1.647]
[1744860616008,5.03,1579.5,1579.4,1.2664]
[1744860616614,3.2078,1579.6,1579.5,1.26632]
[1744860617218,1.6193,1579.8,1579.6,1.26621]
[1744860617412,4.8271,1579.8,1579.7,1.7117]
[1744860617609,4.8271,1579.8,1579.7,2.97786]
[1744860617809,6.09318,1579.8,1579.7,1.26616]
[1744860618206,6.09318,1579.8,1579.6,1.26619]
[1744860618423,6.09318,1579.8,1579.7,1.7117]
[1744860618718,6.09318,1579.8,1579.2,14.82530776]
[1744860618719,1.26627,1579.6,1579.4,1.26636]
[1744860618920,9.47607,1579.6,1579.4,2.97804]
[1744860619114,1.6193,1579.5,1579.4,2.97804]
[1744860619815,8.2098,1579.6,1579.5,1.26632]
[1744860620121,8.2098,1579.6,1579.5,2.99112]
[1744860620516,5.002,1579.6,1579.5,2.99112]
[1744860621214,1.26632,1579.5,1579.4,0.8571]
[1744860621415,11.157,1579.6,1579.4,3.8483]
[1744860622220,1.6809,1579.5,1579.4,3.8483]
[1744860623416,8.2098,1579.6,1579.5,1.26632]
[1744860623624,0.00948196,1579.9,1579.8,1.26608]
[1744860624613,0.00948196,1579.9,1579.8,6.26608]
[1744860624811,0.00948196,1579.9,1579.8,7.10258]
[1744860625522,3.2078,1580.4,1580.2,1.26572]
[1744860625720,1.6616,1580.3,1580.1,1.26576]
[1744860625922,6.1351,1580.3,1580.2,1.607]
[1744860626123,4.8694,1580.3,1580.2,1.607]
[1744860626321,20.72703208,1580.3,1580.2,1.607]
[1744860627130,19.46135208,1580.3,1580.2,1.607]
[1744860627320,17.79975208,1580.3,1580.2,2.87276]
[1744860627815,17.79975208,1580.3,1580.2,3.72366]
[1744860628017,14.59195208,1580.3,1580.2,8.72366]
[1744860628517,14.59195208,1580.3,1580.2,13.72466]
[1744860629623,14.59195208,1580.3,1580.2,19.5437058]
[1744860629624,0.98665406,1580.3,1580.2,19.5437058]
[1744860629824,13.58370269,1580.4,1580.3,1.26568]
[1744860630022,12.09207269,1580.4,1580.3,1.26568]
[1744860630217,10.79938269,1580.4,1580.3,6.26568]
[1744860630413,9.39620269,1580.4,1580.3,9.47348]
[1744860630626,0.00948196,1580.4,1580.3,6.26568]
[1744860632119,1.96e-06,1580.4,1580.3,9.47348]
[1744860632416,1.96e-06,1580.4,1580.3,1.26568]
[1744860632926,1.96e-06,1580.4,1580.3,3.02018]
[1744860633127,1.96e-06,1580.4,1580.3,1.7545]
[1744860633321,1.68050196,1580.4,1580.2,3.87115]
[1744860633725,1.68050196,1580.4,1580.3,1.26568]
[1744860633921,1.96e-06,1580.4,1580.3,6.26568]
[1744860634118,1.96e-06,1580.4,1580.3,8.02018]
[1744860634725,1.96e-06,1580.4,1580.3,11.22798]
[1744860635122,1.96e-06,1580.4,1580.3,8.02018]
[1744860635316,1.96e-06,1580.4,1580.3,11.22798]
[1744860636621,1.96e-06,1580.4,1580.3,6.22798]
[1744860638524,1.96e-06,1580.4,1580.3,11.22798]
[1744860639226,1.96e-06,1580.4,1580.3,8.02018]
[1744860639426,1.96e-06,1580.4,1580.3,11.22798]
[1744860640723,1.96e-06,1580.4,1580.3,17.0470258]
[1744860646229,0.8265,1581.2,1581.0,1.26512]
[1744860646433,0.8265,1581.2,1580.7,3.16335]
[1744860646434,0.8265,1581.2,1581.1,1.26504]
[1744860646621,0.8265,1581.2,1581.0,1.26506]
[1744860647433,5.8265,1581.2,1581.0,1.26506]
[1744860649538,1.26512,1581.0,1580.9,0.00948196]
[1744860649838,7.25512,1581.0,1580.9,0.00948196]
[1744860650134,54.65832,1581.0,1580.9,0.00948196]
[1744860654526,57.86612,1581.0,1580.9,0.00948196]
[1744860662039,52.86612,1581.0,1580.9,0.00948196]
[1744860663244,10.801,1581.0,1580.9,1.27468196]
[1744860663940,4.811,1581.0,1580.9,1.27468196]
[1744860664338,4.16616053,1581.1,1581.0,1.26512]
[1744860664642,1.26512,1581.0,1580.9,0.00948196]
[1744860664841,2.98592,1581.0,1580.9,0.00948196]
[1744860665031,7.98592,1581.0,1580.9,0.00948196]
[1744860665436,1.7208,1581.0,1580.9,1.27468196]
[1744860670845,3.2078,1581.1,1581.0,1.26512]
[1744860671044,4.16616053,1581.2,1581.1,1.26504]
[1744860671239,5.91926053,1581.2,1581.1,1.26504]
[1744860671438,7.18422053,1581.2,1581.1,1.26504]
[1744860671747,5.91926053,1581.2,1581.1,1.26504]
[1744860671946,1.26504,1581.1,1580.9,1.27464196]
[1744860672147,4.8697,1581.1,1581.0,3.02682]
[1744860672350,7.9111408,1581.1,1581.0,3.02682]
[1744860673149,12.3839808,1581.1,1581.0,1.7617]
[1744860676151,11.1189408,1581.1,1581.0,3.02682]
[1744860676349,11.1189408,1581.1,1581.0,1.7617]
[1744860676350,14.88824134,1581.1,1581.0,1.7617]
[1744860676951,13.62320134,1581.1,1581.0,3.02682]
[1744860677144,14.88824134,1581.1,1581.0,3.02682]
[1744860677350,13.62320134,1581.1,1581.0,3.02682]
[1744860677852,3.2078,1581.1,1581.0,3.02682]
[1744860678054,3.2078,1581.1,1581.0,3.90032]
[1744860678242,10.20240196,1581.3,1581.1,1.26504]
[1744860678445,1.26496,1581.2,1581.1,3.81524]
[1744860678643,1.26496,1581.2,1581.1,2.5502]
[1744860679045,2.92476,1581.2,1581.1,2.5502]
[1744860679653,1.26512,1581.1,1580.9,1.27462196]
[1744860679847,6.13272,1581.1,1581.0,1.7]
[1744860680254,12.40496231,1581.1,1581.0,1.7]
[1744860681150,6.27224231,1581.1,1581.0,2.96512]
[1744860681754,10.74508231,1581.1,1581.0,1.7]
[1744860681955,10.74508231,1581.1,1581.0,2.96512]
[1744860682156,9.48004231,1581.1,1581.0,2.96512]
[1744860682547,6.27224231,1581.1,1581.0,2.96512]
[1744860683051,6.27224231,1581.1,1581.0,7.96512]
[1744860686057,6.27224231,1581.1,1581.0,11.17292]
[1744860688959,6.27224231,1581.1,1581.0,6.17292]
[1744860690151,7.53728231,1581.1,1581.0,1.7]
[1744860690346,6.27224231,1581.1,1581.0,2.96512]
[1744860690551,10.74508231,1581.1,1581.0,1.7]
[1744860690859,7.53728231,1581.1,1581.0,1.7]
[1744860691059,6.27224231,1581.1,1581.0,2.96512]
[1744860691762,7.53728231,1581.1,1581.0,1.7]
[1744860692161,6.27224231,1581.1,1581.0,2.96512]
[1744860692464,4.18148241,1581.1,1581.0,2.96512]
[1744860692665,8.65432241,1581.1,1581.0,2.96512]
[1744860692962,7.38928241,1581.1,1581.0,2.96512]
[1744860693364,2.31948241,1581.1,1581.0,2.96512]
[1744860695563,8.85722427,1581.3,1581.2,1.26496]
[1744860696261,10.12212427,1581.3,1581.1,2.98989]
[1744860696462,4.8611,1581.2,1581.1,2.98989]
[1744860696665,1.6533,1581.2,1581.1,2.98989]
[1744860696867,7.15692427,1581.3,1581.2,1.26496]
[1744860697068,7.15692427,1581.3,1581.2,2.90846]
[1744860697568,8.81022427,1581.3,1581.2,2.90846]
[1744860698065,8.81022427,1581.3,1581.2,1.6435]
[1744860698370,12.01802427,1581.3,1581.1,1.265]
[1744860698568,1.6533,1581.2,1581.1,1.265]
[1744860698967,1.6533,1581.2,1581.0,1.6435]
[1744860699164,1.26512,1581.0,1580.9,0.00948196]
[1744860699367,6.01312,1581.0,1580.9,0.00948196]
[1744860699672,54.27182,1581.0,1580.9,0.00948196]
[1744860700675,53.0067,1581.0,1580.9,0.00948196]
[1744860700971,12.2067,1581.0,1580.9,1.27468196]
[1744860702575,13.47182,1581.0,1580.9,0.00948196]
[1744860702772,21.83480975,1581.0,1580.9,0.00948196]
[1744860703074,16.83480975,1581.0,1580.9,0.00948196]
[1744860703273,15.56968975,1581.0,1580.9,1.27468196]
[1744860703469,16.83480975,1581.0,1580.9,0.00948196]
[1744860703670,15.56968975,1581.0,1580.9,1.27468196]
[1744860704174,15.56968975,1581.0,1580.9,0.00948196]
[1744860704372,16.83480975,1581.0,1580.9,0.00948196]
[1744860706069,24.18593727,1581.0,1580.9,0.00948196]
[1744860707476,3.16307,1580.9,1580.2,5.8190458]
[1744860707680,1.26555,1580.5,1580.3,6.92602]
[1744860707876,1.26555,1580.5,1580.4,1.6006]
[1744860708079,3.02405,1580.5,1580.4,1.6006]
[1744860708282,3.02405,1580.5,1580.4,2.8662]
[1744860708481,3.90545,1580.5,1580.4,2.8662]
[1744860708981,2.6399,1580.5,1580.4,2.8662]
[1744860709880,11.01262677,1580.7,1580.6,1.26544]
[1744860710083,12.73982677,1580.7,1580.6,1.26544]
[1744860710284,14.00518677,1580.7,1580.6,1.26544]
[1744860710580,14.00518677,1580.7,1580.5,2.93346]
[1744860710883,14.00520677,1580.7,1580.5,1.668]
[1744860711181,6.26362677,1580.7,1580.6,2.93344]
[1744860713592,10.12963677,1580.8,1580.6,2.93344]
[1744860713784,6.26362677,1580.8,1580.7,2.99576]
[1744860715388,10.73670677,1580.8,1580.7,2.99576]
[1744860715893,10.73670677,1580.8,1580.7,1.26536]
[1744860716093,12.50160677,1580.8,1580.7,1.26536]
[1744860716293,11.23632677,1580.8,1580.7,1.26536]
[1744860716595,11.23632677,1580.8,1580.5,1.6367]
[1744860716596,12.50163677,1580.8,1580.6,1.26538]
[1744860716895,12.50163677,1580.8,1580.7,1.6367]
[1744860717498,6.23801,1580.8,1580.7,1.6367]
[1744860717698,9.9727,1580.8,1580.3,0.00948196]
[1744860717995,3.2078,1580.5,1580.4,1.2656]
[1744860718188,5.92449,1580.6,1580.4,1.2656]
[1744860718386,6.75509,1580.6,1580.5,1.6885]
[1744860718697,1.26554,1580.5,1580.3,0.00948196]
[1744860718891,6.15564,1580.5,1580.3,2.96363196]
[1744860719187,6.15564,1580.5,1580.4,1.6885]
[1744860719391,3.2078,1580.7,1580.4,1.6885]
[1744860719695,1.26531,1580.8,1580.6,1.2654]
[1744860719887,4.47316,1580.7,1580.5,1.26546]
[1744860720088,4.47316,1580.7,1580.6,1.6885]
[1744860720792,12.83614975,1580.7,1580.6,1.6885]
[1744860721596,14.53424975,1580.7,1580.6,1.6885]
[1744860724502,6.17126,1580.7,1580.6,1.6885]
[1744860726197,2.96346,1580.7,1580.6,1.6885]
[1744860726601,7.51595971,1580.8,1580.6,2.95394]
[1744860727091,7.51595971,1580.8,1580.7,1.7242]
[1744860728503,9.28145971,1580.8,1580.7,1.7242]
[1744860729396,8.01614971,1580.8,1580.3,0.00948196]
[1744860729597,8.01614971,1580.8,1580.3,2.94295196]
[1744860729598,3.2078,1580.4,1580.3,2.94295196]
[1744860729895,1.2656,1580.4,1580.3,2.94295196]
[1744860730299,2.89466196,1580.5,1580.3,2.94295196]
[1744860730497,2.89466196,1580.5,1580.4,1.6678]
[1744860731098,1.62908196,1580.5,1580.4,1.6678]
[1744860731300,0.00948196,1580.5,1580.4,2.9334]
[1744860731599,0.00948196,1580.5,1580.4,8.7851]
[1744860732300,0.00948196,1580.5,1580.4,13.4441]
[1744860732601,0.00948196,1580.5,1580.4,16.6519]
[1744860732797,0.00948196,1580.5,1580.4,13.4441]
[1744860733003,6.25064971,1580.8,1580.7,1.26536]
[1744860733502,8.36298975,1580.8,1580.7,7.09276]
[1744860734401,8.36298975,1580.8,1580.7,2.09276]
[1744860735397,8.36298975,1580.8,1580.7,7.09276]
[1744860735798,8.36298975,1580.8,1580.7,2.09276]
[1744860736907,10.46321914,1580.9,1580.8,1.26528]
[1744860737206,0.00948196,1580.9,1580.8,2.95178]
[1744860739508,0.00948196,1580.9,1580.8,3.83648]
[1744860740111,0.00948196,1580.9,1580.8,8.83648]
[1744860740309,0.00948196,1580.9,1580.8,12.04428]
[1744860741209,0.00948196,1580.9,1580.8,8.83648]
[1744860741804,1.96e-06,1580.9,1580.8,17.8633258]
[1744860743913,1.96e-06,1580.9,1580.8,12.8633258]
[1744860744218,1.96e-06,1580.9,1580.8,17.8633258]
[1744860744914,1.96e-06,1580.9,1580.8,22.4443258]
[1744860745717,1.96e-06,1580.9,1580.8,17.4443258]
[1744860746011,1.96e-06,1580.9,1580.8,14.2365258]
[1744860746307,1.96e-06,1580.9,1580.8,3.83648]
[1744860746512,1.96e-06,1580.9,1580.8,2.95178]
[1744860748413,1.96e-06,1580.9,1580.8,6.15958]
[1744860749308,1.96e-06,1580.9,1580.8,11.9786258]
[1744860749515,1.96e-06,1580.9,1580.8,16.9786258]
[1744860752013,1.96e-06,1580.9,1580.8,11.9786258]
[1744860757411,1.96e-06,1580.9,1580.8,16.9786258]
[1744860759921,1.96e-06,1580.9,1580.8,11.9786258]
[1744860762422,1.96e-06,1580.9,1580.8,16.9786258]
[1744860763823,1.96e-06,1580.9,1580.8,11.9786258]
[1744860768815,1.96e-06,1580.9,1580.8,16.5576258]
[1744860777732,5.00000196,1580.9,1580.8,4.47308]
[1744860778830,7.42120196,1580.9,1580.8,4.47308]
[1744860783435,7.42120196,1580.9,1580.8,1.26528]
[1744860784633,10.62900196,1580.9,1580.7,1.26532]
[1744860784938,1.6291,1580.8,1580.7,1.26532]
[1744860785435,6.6291,1580.8,1580.7,1.26532]
[1744860786736,6.6291,1580.8,1580.5,3.2078]
[1744860786936,5.27498196,1580.9,1580.6,1.26537]
[1744860787131,5.27498196,1580.9,1580.7,1.26536]
[1744860787540,10.27498196,1580.9,1580.7,1.26536]
[1744860788537,1.26531,1580.8,1580.6,1.26538]
[1744860788738,1.26531,1580.8,1580.5,3.2078]
[1744860789140,1.26531,1580.8,1580.6,1.26544]
[1744860790639,3.2078,1580.7,1580.4,1.26556]
[1744860790944,1.2656,1580.4,1580.3,0.00948196]
[1744860791341,6.2656,1580.4,1580.3,0.00948196]
[1744860795242,6.2656,1580.4,1580.3,1e-08]
[1744860797348,10.7586,1580.4,1580.3,1e-08]
[1744860798149,5.7586,1580.4,1580.3,1e-08]
[1744860798352,4.47335,1580.5,1580.3,1e-08]
[1744860798649,4.493,1580.4,1580.3,1.26561001]
[1744860799550,5.7586,1580.4,1580.3,1e-08]
[1744860802657,10.7586,1580.4,1580.3,1e-08]
[1744860803949,5.7586,1580.4,1580.3,1e-08]
[1744860804655,4.47337,1580.5,1580.3,1.26568001]
[1744860804953,7.4473,1580.4,1580.3,1e-08]
[1744860805451,6.1817,1580.4,1580.3,1.26568001]
[1744860805758,7.4473,1580.4,1580.3,1.26568001]
[1744860807156,7.4473,1580.4,1580.3,1e-08]
[1744860807455,7.4473,1580.4,1580.3,1.26568001]